bitfinex/quotes_ETHUSD_20251212
["timestamp","ask_amount","ask_price","bid_price","bid_amount"]
[1765560519293,3.25637435,3070.9,3070.8,0.484]
[1765560519466,3.78437435,3070.9,3070.8,0.484]
[1765560519860,3.78437435,3070.9,3070.5,0.4721]
[1765560521266,3.78437435,3070.9,3070.8,0.484]
[1765560521478,0.528,3070.9,3070.8,0.484]
[1765560521803,0.528,3070.9,3070.8,0.9561]
[1765560522380,3.25629106,3071.0,3070.8,0.9561]
[1765560522583,0.528,3070.9,3070.3,0.1891]
[1765560522771,0.58047529,3071.4,3070.9,0.484]
[1765560522978,0.528,3071.3,3070.9,0.484]
[1765560523177,0.528,3071.3,3070.9,0.9561]
[1765560523378,0.528,3071.3,3070.4,0.4721]
[1765560523971,1.019,3071.3,3070.3,0.1891]
[1765560524472,0.58047529,3071.4,3070.3,0.6612]
[1765560524771,0.528,3071.3,3070.3,0.6612]
[1765560525100,0.528,3071.3,3070.4,0.4721]
[1765560525262,1.10847529,3071.3,3070.4,0.4721]
[1765560526060,2.362504,3071.2,3070.3,0.1891]
[1765560526266,0.528,3071.1,3070.4,0.4721]
[1765560526473,6.51168848,3071.4,3071.1,0.6731]
[1765560526698,3.25563224,3071.6,3071.1,0.6731]
[1765560526861,1.10847529,3071.5,3071.1,0.6731]
[1765560527463,0.528,3071.5,3071.1,0.6731]
[1765560527663,3.25563224,3071.6,3071.4,0.484]
[1765560528000,0.528,3071.5,3071.2,0.4721]
[1765560528207,0.528,3071.5,3070.8,0.4721]
[1765560528368,1.55749858,3071.5,3070.8,0.4721]
[1765560528558,1.55749858,3071.5,3070.4,0.4721]
[1765560528890,0.58047529,3071.2,3070.4,0.4721]
[1765560529097,0.528,3071.1,3070.4,0.4721]
[1765560529593,0.58047529,3071.3,3070.4,0.4721]
[1765560529898,0.528,3071.2,3070.4,0.4721]
[1765560530102,3.25556152,3071.7,3070.4,0.4721]
[1765560530103,0.001,3072.4,3071.2,0.6731]
[1765560530274,0.528,3072.1,3071.3,0.482]
[1765560530474,0.528,3072.1,3072.0,0.482]
[1765560530893,0.528,3072.1,3071.3,0.4716]
[1765560531602,1.55726942,3072.1,3071.3,0.4716]
[1765560531990,0.528,3072.1,3071.3,0.4716]
[1765560532594,0.528,3072.0,3071.3,3.72751503]
[1765560533093,3.83536576,3072.3,3071.9,0.482]
[1765560533271,0.001,3072.4,3072.2,0.6691]
[1765560533476,0.528,3072.3,3071.4,0.4716]
[1765560533683,1.55733718,3072.3,3071.4,0.4716]
[1765560533882,0.528,3072.2,3071.4,0.4716]
[1765560534286,0.528,3072.1,3071.4,0.4716]
[1765560534879,3.78310237,3072.1,3072.0,0.482]
[1765560535077,3.25510237,3072.1,3071.4,0.4716]
[1765560535281,0.001,3072.4,3072.0,0.482]
[1765560535479,0.001,3072.4,3072.3,0.482]
[1765560535878,0.529,3072.4,3072.3,0.9536]
[1765560536074,0.001,3072.4,3072.3,0.9536]
[1765560536271,0.529,3072.4,3072.3,0.9536]
[1765560536475,3.78378453,3072.4,3071.6,3.25554736]
[1765560536671,0.529,3072.4,3072.3,0.6691]
[1765560536871,0.001,3072.4,3072.3,0.6691]
[1765560537390,0.001,3072.4,3072.3,1.1407]
[1765560538490,3.25578453,3072.4,3072.3,1.1407]
[1765560538707,0.001,3072.4,3072.3,0.6691]
[1765560539004,3.25578453,3072.4,3072.3,0.6691]
[1765560539503,3.25578453,3072.4,3071.9,0.4716]
[1765560540301,6.96996906,3072.4,3071.3,0.4716]
[1765560540505,6.51056906,3072.4,3071.4,3.25579991]
[1765560540804,6.51056906,3072.4,3071.3,0.4716]
[1765560540805,6.51056906,3072.4,3071.5,3.62847776]
[1765560541007,6.51056906,3072.4,3071.6,0.4716]
[1765560541222,0.528,3072.3,3071.6,0.4716]
[1765560541378,1.10847529,3072.3,3071.2,0.6607]
[1765560541722,5.103241,3072.2,3071.2,0.6607]
[1765560541877,0.62117163,3072.1,3071.2,0.6607]
[1765560542072,7.853677,3072.2,3071.2,0.6607]
[1765560542279,5.641971,3072.2,3071.2,0.6607]
[1765560542530,8.314966,3072.1,3071.2,0.6607]
[1765560542687,0.528,3072.0,3071.3,0.4716]
[1765560542878,0.528,3071.9,3071.3,0.4716]
[1765560543924,7.03872158,3071.9,3071.3,0.4716]
[1765560544632,3.25489047,3072.3,3071.3,0.4716]
[1765560544839,6.50978094,3072.3,3071.3,3.72753265]
[1765560544992,0.528,3072.2,3071.4,0.39166327]
[1765560545200,3.78300682,3072.2,3071.4,4.11906062]
[1765560545397,3.78300682,3072.2,3072.1,0.1871]
[1765560545597,0.528,3072.2,3072.1,0.6691]
[1765560545938,3.78299641,3072.2,3071.8,0.4716]
[1765560546130,0.001,3072.4,3072.1,0.6691]
[1765560546343,0.001,3072.4,3072.3,0.482]
[1765560546488,0.529,3072.4,3072.3,0.482]
[1765560546694,0.529,3072.4,3072.3,0.9536]
[1765560547091,0.405504,3072.3,3070.5,0.4716]
[1765560547352,0.405504,3072.3,3070.3,0.1891]
[1765560547353,0.405504,3071.7,3070.3,0.1891]
[1765560547511,16.200936,3071.4,3070.3,0.1891]
[1765560547749,2.101068,3071.3,3070.3,0.1891]
[1765560547906,2.981248,3071.3,3070.3,0.1891]
[1765560548107,0.3386752,3071.2,3070.3,0.1891]
[1765560548444,0.1492,3072.1,3071.3,0.6691]
[1765560548724,0.528,3072.0,3071.5,0.482]
[1765560548904,0.528,3072.0,3071.3,0.1871]
[1765560549102,6.50999282,3072.2,3071.4,0.4716]
[1765560549313,0.528,3071.9,3071.4,0.4716]
[1765560549694,0.6772,3071.9,3071.1,0.1871]
[1765560549889,0.528,3071.9,3071.1,0.1871]
[1765560550115,0.528,3071.9,3071.1,3.91485322]
[1765560550316,0.528,3071.9,3071.2,0.39148532]
[1765560550528,0.528,3071.8,3071.1,0.1871]
[1765560550705,0.528,3071.7,3071.2,0.4716]
[1765560551325,3.78356466,3071.7,3071.2,0.4716]
[1765560551500,0.528,3071.6,3071.2,0.4716]
[1765560552651,0.528,3071.5,3071.2,0.4716]
[1765560552796,0.528,3071.5,3071.2,0.86308582]
[1765560553398,0.528,3071.5,3071.4,0.482]
[1765560553602,0.528,3071.6,3071.4,0.482]
[1765560553797,0.528,3071.6,3071.4,0.9536]
[1765560553998,0.528,3072.0,3071.5,0.482]
[1765560554521,0.528,3072.0,3071.4,0.4716]
[1765560554725,0.528,3072.0,3071.1,0.1871]
[1765560554928,0.528,3072.0,3071.2,3.25605426]
[1765560555131,0.6086,3071.9,3070.6,0.4716]
[1765560555332,23.045008,3071.7,3070.3,0.6607]
[1765560555540,4.150725,3071.5,3070.3,3.91761623]
[1765560555698,0.528,3071.4,3070.3,3.91761623]
[1765560555900,0.528,3071.4,3070.3,0.6607]
[1765560556130,0.528,3071.4,3070.3,3.91769393]
[1765560556334,0.528,3071.4,3070.3,0.6607]
[1765560556639,0.58047529,3071.2,3070.1,0.05]
[1765560556812,1.76295883,3071.1,3070.1,0.05]
[1765560557339,0.4594,3071.0,3070.1,0.05]
[1765560557534,7.0407487,3070.9,3070.1,0.05]
[1765560558301,10.29712305,3070.9,3070.1,0.05]
[1765560558732,0.528,3070.8,3070.1,0.05]
[1765560559113,2.18411769,3070.8,3070.1,0.05]
[1765560559528,6.51317288,3070.7,3070.1,0.05]
[1765560559835,0.58047529,3070.6,3070.1,0.05]
[1765560561540,6.51359712,3070.5,3070.1,0.05]
[1765560561742,0.528,3070.4,3070.1,0.05]
[1765560562443,3.25672584,3070.6,3070.2,0.4961]
[1765560562771,10.20341434,3070.6,3070.1,0.05]
[1765560562941,1.0179,3070.5,3070.1,0.05]
[1765560563510,3.3166168,3070.2,3070.1,0.05]
[1765560563722,8.55204609,3070.2,3070.1,0.05]
[1765560563925,23.56458371,3070.2,3070.1,0.05]
[1765560564166,23.56458371,3070.2,3069.7,0.002]
[1765560564167,32.02824656,3070.2,3069.7,0.002]
[1765560564473,0.555604,3069.8,3069.7,0.002]
[1765560564615,6.18539129,3069.8,3069.7,0.002]
[1765560564937,16.22448429,3069.8,3069.7,0.002]
[1765560565132,5.50650611,3069.8,3069.7,0.002]
[1765560565333,4.058736,3069.9,3069.7,0.002]
[1765560565533,3.2575412,3069.8,3069.7,0.002]
[1765560565752,3.7855412,3069.8,3069.7,0.002]
[1765560566242,3.8450412,3069.8,3069.7,0.002]
[1765560566750,3.2575412,3069.8,3069.7,0.002]
[1765560566912,3.8450412,3069.8,3069.7,0.002]
[1765560567114,4.56980812,3069.8,3069.7,0.002]
[1765560568134,4.04180812,3069.8,3069.7,0.002]
[1765560568343,3.2575412,3069.8,3069.7,0.002]
[1765560568513,3.7855412,3069.8,3069.7,0.002]
[1765560568847,3.2575412,3069.8,3069.7,0.002]
[1765560569056,3.25742803,3070.0,3069.7,0.002]
[1765560569057,3.25747299,3069.9,3069.7,0.002]
[1765560569344,0.528,3069.8,3069.7,0.4919]
[1765560569545,0.528,3069.8,3069.7,0.4981]
[1765560569728,0.528,3069.8,3069.7,0.988]
[1765560569924,3.7855412,3069.8,3069.7,0.988]
[1765560570125,3.7855412,3069.8,3069.7,0.4919]
[1765560570339,3.25742803,3070.0,3069.7,0.4919]
[1765560570340,3.25747824,3069.9,3069.7,0.002]
[1765560570538,0.528,3069.8,3069.7,0.002]
[1765560571152,0.528,3069.8,3069.7,0.988]
[1765560571533,3.25679856,3070.5,3069.7,0.988]
[1765560571737,6.51359712,3070.5,3070.0,0.4899]
[1765560571937,0.528,3070.4,3070.0,0.4899]
[1765560572147,0.528,3070.4,3069.7,0.002]
[1765560573726,6.51402142,3070.3,3069.7,0.002]
[1765560574655,7.59290979,3070.3,3069.7,0.002]
[1765560575157,10.8499205,3070.3,3069.7,0.002]
[1765560575759,4.972623,3070.2,3069.7,0.002]
[1765560575949,5.462523,3070.2,3069.7,0.002]
[1765560576151,0.4899,3070.2,3069.7,0.002]
[1765560576350,10.8499205,3070.3,3069.7,0.002]
[1765560576351,1.62388205,3070.1,3069.7,0.002]
[1765560576535,0.528,3070.0,3069.7,0.002]
[1765560576737,0.6351,3069.8,3069.7,0.002]
[1765560577035,19.73057529,3069.8,3069.7,0.002]
[1765560577234,14.69100329,3069.8,3069.7,0.002]
[1765560577429,16.44006293,3069.8,3069.7,0.002]
[1765560577635,11.39030213,3069.8,3069.7,0.002]
[1765560577857,12.32380613,3069.8,3069.7,0.002]
[1765560578031,29.98821013,3069.8,3069.7,0.002]
[1765560578635,30.05937913,3069.8,3069.7,0.002]
[1765560578961,29.99300213,3069.8,3069.7,0.002]
[1765560579331,27.29265313,3069.8,3069.7,0.002]
[1765560580034,39.70018013,3069.8,3069.7,0.002]
[1765560580469,29.35374513,3069.8,3069.7,0.002]
[1765560580663,27.03365613,3069.8,3069.7,0.002]
[1765560580968,39.70018013,3069.8,3069.7,0.002]
[1765560581168,39.74858362,3069.8,3069.7,0.002]
[1765560581371,34.53021262,3069.8,3069.7,0.002]
[1765560582149,52.77874842,3069.8,3068.9,0.006]
[1765560582382,11.04906829,3069.0,3068.9,0.006]
[1765560582562,11.57706829,3069.0,3067.5,3.25995331]
[1765560582765,0.4899,3068.9,3067.5,3.25995331]
[1765560583077,0.4899,3068.9,3067.6,3.25984683]
[1765560583691,1.10847529,3069.0,3067.1,3.84083108]
[1765560583886,3.25786244,3069.5,3068.9,0.6525]
[1765560584038,1.10847529,3069.4,3068.9,0.6525]
[1765560584243,0.528,3069.3,3068.9,0.6525]
[1765560584665,0.528,3069.3,3068.9,1.1486]
[1765560585193,0.528,3069.3,3068.9,0.6525]
[1765560585342,0.528,3069.3,3068.4,0.4961]
[1765560585642,0.58047529,3069.0,3068.4,0.002]
[1765560585839,6.51720542,3068.8,3068.4,0.002]
[1765560586046,9.77580813,3068.8,3068.4,0.002]
[1765560586471,10.26570813,3068.8,3068.4,0.002]
[1765560586684,0.4899,3068.7,3068.4,0.002]
[1765560587083,0.4899,3068.7,3066.2,0.04840349]
[1765560587084,0.4899,3068.2,3066.2,0.04840349]
[1765560587377,0.4899,3068.6,3066.3,0.4961]
[1765560587550,0.58047529,3068.2,3066.3,0.4961]
[1765560587761,6.51890482,3068.0,3066.4,9.78345942]
[1765560588061,2.123261,3067.8,3066.4,0.4961]
[1765560588277,0.58047529,3067.7,3066.3,6.47250964]
[1765560588475,0.58047529,3067.6,3066.1,0.1898]
[1765560588657,15.044206,3067.2,3066.1,0.1898]
[1765560588975,0.58047529,3066.7,3065.6,0.1898]
[1765560589185,0.58047529,3066.9,3065.6,0.1898]
[1765560589186,0.1965,3066.9,3066.1,0.1898]
[1765560589677,0.528,3066.8,3066.1,0.1898]
[1765560589851,0.58047529,3067.2,3066.2,3.75744738]
[1765560590050,0.528,3066.9,3066.7,0.4929]
[1765560590254,0.528,3066.8,3066.7,0.003]
[1765560590840,0.58047529,3067.3,3066.7,0.003]
[1765560591046,0.528,3067.2,3066.7,0.003]
[1765560591250,0.528,3067.1,3066.7,0.003]
[1765560591562,0.58047529,3067.6,3066.7,0.003]
[1765560591765,0.528,3067.5,3067.0,0.4508]
[1765560591966,6.52016784,3067.5,3067.0,0.4508]
[1765560592162,0.528,3067.4,3067.1,0.1818]
[1765560592752,3.26008392,3067.5,3067.1,0.1818]
[1765560592970,0.528,3067.4,3067.1,0.6553]
[1765560593147,3.2596649,3067.8,3067.4,0.4508]
[1765560593347,1.10847529,3067.7,3067.4,0.4508]
[1765560593962,3.25987742,3067.6,3067.4,0.4508]
[1765560594165,6.51975484,3067.6,3067.1,0.6553]
[1765560596379,3.25987742,3067.6,3067.2,0.4735]
[1765560596581,0.528,3067.5,3067.2,0.86508108]
[1765560596752,0.528,3067.5,3067.2,0.4735]
[1765560597100,0.405504,3066.9,3066.7,0.003]
[1765560597259,6.406188,3066.8,3066.7,0.003]
[1765560597585,2.20277529,3066.8,3066.7,0.003]
[1765560598184,5.46350308,3066.8,3066.7,0.003]
[1765560598351,4.97490308,3066.8,3066.7,0.003]
[1765560598675,3.84120308,3066.8,3066.7,0.003]
[1765560598857,4.37020308,3066.8,3066.7,0.003]
[1765560599681,3.84120308,3066.8,3066.7,0.003]
[1765560599882,4.55138458,3066.8,3066.7,0.003]
[1765560600091,3.84120308,3066.8,3066.7,0.003]
[1765560600335,4.30550308,3066.8,3066.7,0.003]
[1765560600594,25.66360808,3066.8,3066.7,0.003]
[1765560600955,8.15263708,3066.8,3066.7,0.003]
[1765560601157,2.0,3066.9,3066.7,0.003]
[1765560601357,3.2596649,3067.8,3066.9,0.4508]
[1765560601587,0.529,3067.7,3067.0,0.4508]
[1765560601796,0.1897,3067.9,3067.0,0.4508]
[1765560601954,0.529,3067.6,3067.1,0.1818]
[1765560602160,0.529,3067.7,3067.1,0.1818]
[1765560602509,0.529,3068.3,3067.2,0.4735]
[1765560602816,0.53,3068.6,3068.2,0.6326]
[1765560602959,0.05,3071.1,3068.4,0.98597929]
[1765560603168,8.07959307,3070.7,3068.5,0.6553]
[1765560603472,8.07959307,3070.0,3068.5,0.1818]
[1765560603674,2.5302,3069.9,3068.5,0.1818]
[1765560603865,3.0843,3069.7,3068.5,0.6553]
[1765560604060,0.53,3069.6,3068.6,0.4735]
[1765560604263,0.001,3068.8,3068.2,0.6553]
[1765560604509,0.001,3068.8,3068.2,0.1818]
[1765560604510,0.53,3068.7,3068.2,0.1818]
[1765560604658,0.53,3068.7,3068.3,0.4735]
[1765560604860,0.53,3068.7,3068.3,0.86495366]
[1765560605082,0.001,3068.8,3068.3,0.4735]
[1765560605290,0.001,3068.8,3068.4,0.4735]
[1765560605759,0.531,3068.8,3068.4,0.4735]
[1765560605956,0.001,3068.8,3068.4,0.4735]
[1765560606184,0.531,3068.8,3068.4,0.4735]
[1765560606385,0.001,3068.8,3068.4,0.4735]
[1765560607096,0.001,3068.8,3068.4,7.38296024]
[1765560607261,0.001,3068.8,3068.5,0.4735]
[1765560607458,0.001,3068.8,3068.5,1.05397529]
[1765560607868,0.001,3068.8,3068.6,0.4735]
[1765560608303,0.001,3068.8,3068.7,3.25870889]
[1765560608495,0.001,3068.8,3068.7,4.0158605]
[1765560608692,0.001,3068.8,3068.7,1.23065161]
[1765560608891,0.001,3068.8,3068.7,0.4735]
[1765560609911,0.001,3068.8,3068.3,0.4735]
[1765560610405,3.25960271,3068.8,3068.3,0.4735]
[1765560610706,0.001,3068.8,3068.3,6.99175745]
[1765560610872,0.001,3068.8,3068.4,1.19085575]
[1765560611278,0.001,3068.8,3068.5,0.4735]
[1765560612007,0.001,3068.8,3068.6,0.405504]
[1765560612186,0.001,3068.8,3068.7,0.58047529]
[1765560612512,0.001,3068.8,3068.7,1.05397529]
[1765560612807,0.001,3068.8,3068.7,1.81113755]
[1765560613119,0.001,3068.8,3068.0,0.4735]
[1765560613931,0.001,3068.8,3067.5,0.53]
[1765560614206,0.001,3068.8,3068.2,3.44103831]
[1765560614506,0.001,3068.8,3068.3,0.4735]
[1765560615077,0.001,3068.8,3068.2,0.1818]
[1765560615307,0.001,3068.8,3068.2,3.4410323]
[1765560615524,0.001,3068.8,3068.3,0.81760323]
[1765560615997,0.001,3068.8,3067.8,0.4735]
[1765560616228,3.25960271,3068.8,3067.9,0.4735]
[1765560616796,6.51820542,3068.8,3067.6,3.25987742]
[1765560617022,0.4886,3068.7,3067.6,6.51975484]
[1765560617336,0.001,3068.8,3067.7,0.4735]
[1765560617502,0.001,3068.8,3067.8,1.02531323]
[1765560618035,0.001,3068.8,3067.9,0.4723]
[1765560618233,0.001,3068.8,3068.0,6.51890482]
[1765560618402,0.001,3068.8,3068.0,3.25945241]
[1765560618604,0.001,3068.8,3067.6,0.4723]
[1765560618811,1.5430968,3068.8,3067.5,3.25995801]
[1765560619138,1.5430968,3068.8,3067.2,4.3523]
[1765560619139,3.822362,3068.7,3067.2,4.3523]
[1765560619423,0.58047529,3068.5,3067.1,0.1818]
[1765560619737,20.133549,3068.1,3066.3,3.26124773]
[1765560619939,3.3431,3067.8,3066.1,0.6541]
[1765560620100,2.56340243,3068.0,3066.1,0.6541]
[1765560620101,0.58047529,3067.5,3066.1,0.6541]
[1765560620439,9.78026991,3067.4,3066.1,0.1818]
[1765560620637,6.52017994,3067.4,3066.1,3.44326787]
[1765560620805,0.4773,3067.3,3066.1,3.44326787]
[1765560621134,4.326363,3067.2,3066.1,0.1818]
[1765560621304,3.25956401,3067.9,3067.2,0.1818]
[1765560621503,3.97507966,3068.1,3067.2,0.1818]
[1765560621920,0.1867,3068.4,3067.2,0.6632]
[1765560622123,0.529,3068.3,3067.3,0.4814]
[1765560622537,0.529,3068.3,3067.3,7.00178469]
[1765560622846,0.529,3068.4,3067.4,0.71835847]
[1765560623000,0.529,3068.4,3067.4,1.19975847]
[1765560623201,0.529,3068.4,3067.5,0.4814]
[1765560623407,0.4773,3068.3,3067.2,0.1818]
[1765560623635,0.1867,3067.3,3066.1,0.6632]
[1765560623850,0.7157,3067.3,3066.6,3.26093922]
[1765560624147,1.0073,3067.7,3066.7,0.32939392]
[1765560624438,1.0073,3067.7,3066.7,3.59022099]
[1765560624624,0.53,3067.6,3066.7,7.33245511]
[1765560624938,0.53,3067.9,3066.8,0.4814]
[1765560625307,0.53,3067.9,3066.7,3.59022099]
[1765560625308,1.194,3067.9,3066.7,3.59022099]
[1765560625533,19.681098,3067.5,3066.7,0.003]
[1765560625762,0.4773,3067.4,3066.7,0.003]
[1765560625951,2.831696,3067.2,3066.7,0.003]
[1765560626384,13.03722103,3068.2,3066.7,0.003]
[1765560626385,3.2590061,3068.5,3067.1,0.1818]
[1765560626537,8.87539,3068.3,3067.1,0.1818]
[1765560626873,0.58047529,3068.2,3067.1,0.1818]
[1765560627077,7.843769,3068.1,3067.1,0.1818]
[1765560627248,2.636915,3068.1,3067.1,0.1818]
[1765560627446,0.4773,3068.1,3067.1,3.44219463]
[1765560627751,0.9250459,3068.4,3067.1,3.44219463]
[1765560627949,0.53,3068.0,3067.1,3.92359463]
[1765560628126,0.53,3067.9,3067.1,3.92359463]
[1765560628636,0.4773,3067.8,3066.8,3.26065361]
[1765560628840,0.4773,3067.8,3066.9,3.26062028]
[1765560629225,0.7167,3067.9,3066.7,0.003]
[1765560629226,0.1867,3067.9,3066.7,0.003]
[1765560629426,0.53,3067.8,3066.8,0.4814]
[1765560629869,0.53,3067.7,3067.0,3.26047176]
[1765560630158,0.53,3067.7,3067.0,0.70024739]
[1765560630363,0.4773,3068.3,3067.1,7.18397812]
[1765560630586,0.53,3068.2,3067.2,0.4814]
[1765560630776,7.0486469,3068.2,3067.3,3.26019626]
[1765560631166,3.78932345,3068.2,3067.3,6.52039252]
[1765560631484,3.2596099,3068.8,3068.1,0.1825]
[1765560631659,0.53,3068.7,3068.1,0.1825]
[1765560631860,5.315677,3068.6,3067.4,0.70017925]
[1765560632077,0.58047529,3068.5,3067.3,3.26019626]
[1765560632280,4.336121,3068.4,3067.3,3.26019626]
[1765560632479,0.1867,3067.4,3066.7,0.003]
[1765560632690,0.7167,3067.4,3066.8,3.88]
[1765560632889,0.7167,3067.4,3066.7,0.003]
[1765560632890,8.511527,3067.3,3066.7,0.003]
[1765560633193,1.62257874,3067.3,3066.7,0.003]
[1765560633357,7.71426044,3067.4,3066.7,0.003]
[1765560633556,0.405504,3067.3,3066.7,0.003]
[1765560633786,0.882804,3067.3,3066.7,0.003]
[1765560634305,0.4773,3067.2,3066.7,0.003]
[1765560634584,1.0073,3067.2,3066.7,0.003]
[1765560634785,0.58047529,3067.0,3066.7,0.003]
[1765560634983,6.9981177,3067.1,3066.7,0.003]
[1765560635186,0.4773,3067.0,3066.7,0.003]
[1765560635558,0.53,3066.9,3066.7,0.003]
[1765560636490,0.1867,3067.4,3066.7,0.003]
[1765560636666,0.53,3067.3,3066.7,0.003]
[1765560637594,0.04840349,3068.1,3067.2,0.1825]
[1765560637595,6.5189705,3068.0,3067.2,0.1825]
[1765560637798,0.529,3067.7,3067.0,0.1825]
[1765560638014,0.529,3067.7,3066.7,0.003]
[1765560638178,12.980989,3067.5,3066.7,0.003]
[1765560638378,1.3987289,3067.5,3066.7,0.003]
[1765560638578,0.4773,3067.5,3066.7,0.003]
[1765560638778,6.52017994,3067.4,3066.7,0.003]
[1765560639179,8.621608,3067.2,3066.7,0.003]
[1765560639478,0.529,3067.1,3066.7,0.003]
[1765560640215,0.529,3067.0,3066.7,0.003]
[1765560640389,3.73731348,3067.5,3066.7,0.003]
[1765560640584,6.106429,3068.5,3067.4,0.1825]
[1765560640780,7.37778978,3068.4,3067.4,3.44256637]
[1765560640983,0.58047529,3068.3,3067.4,3.44256637]
[1765560641281,0.58047529,3068.3,3067.4,0.1825]
[1765560641482,7.85508978,3068.4,3067.4,0.1825]
[1765560641706,9.789433,3068.3,3067.0,0.1825]
[1765560641902,0.58047529,3068.1,3067.0,0.1825]
[1765560642119,3.163374,3068.0,3067.0,0.1825]
[1765560642291,0.529,3067.9,3067.0,0.1825]
[1765560642488,1.193,3067.9,3067.0,0.1825]
[1765560642710,6.5193298,3067.8,3067.0,0.1825]
[1765560642891,7.76786278,3067.8,3066.7,0.003]
[1765560643101,7.76786278,3067.8,3066.9,3.26059524]
[1765560643304,4.50819788,3067.8,3067.0,3.26048255]
[1765560643522,4.50819788,3067.8,3066.9,3.26058014]
[1765560643825,4.50819788,3067.8,3066.8,3.26072253]
[1765560643826,7.76786278,3067.8,3066.8,3.26072253]
[1765560644121,4.50819788,3067.8,3067.0,3.26045776]
[1765560644426,0.529,3068.1,3067.0,6.52097292]
[1765560644622,0.529,3068.1,3067.1,0.4814]
[1765560644830,0.529,3068.1,3067.2,6.5206051]
[1765560645116,0.529,3068.1,3067.2,9.78090765]
[1765560645291,0.529,3068.1,3067.3,0.4814]
[1765560645488,0.529,3068.1,3067.4,1.02623077]
[1765560646401,7.52506106,3068.1,3066.8,0.34462225]
[1765560646603,6.424602,3068.0,3066.9,3.26055016]
[1765560646838,6.5191173,3067.9,3066.8,3.26071565]
[1765560647042,0.529,3067.8,3066.8,7.00284344]
[1765560647197,6.518055,3068.4,3066.9,0.4814]
[1765560647397,0.529,3068.3,3067.0,1.02635712]
[1765560647815,0.529,3068.3,3067.0,1.50775712]
[1765560648199,0.529,3068.3,3067.0,1.02635712]
[1765560648434,0.529,3068.3,3067.1,0.4814]
[1765560648932,0.529,3068.2,3067.2,6.5206051]
[1765560649137,0.529,3068.2,3067.3,0.70020051]
[1765560649323,6.518055,3068.4,3067.3,0.70020051]
[1765560649524,0.001,3068.8,3067.4,0.4814]
[1765560649734,3.25870889,3068.7,3067.4,0.4814]
[1765560649915,6.91585867,3068.7,3067.4,0.4814]
[1765560650229,7.39315867,3068.7,3067.4,0.4814]
[1765560650405,6.91585867,3068.7,3067.4,0.4814]
[1765560650605,0.4502,3068.6,3067.3,0.70020051]
[1765560650837,3.25892129,3068.5,3067.4,6.52017994]
[1765560651035,3.25892129,3068.5,3065.9,0.497]
[1765560651036,0.1808,3067.4,3065.9,0.497]
[1765560651336,0.529,3067.3,3066.3,0.1853]
[1765560651803,0.4502,3067.2,3065.9,0.497]
[1765560652221,0.4502,3067.2,3066.2,3.26126835]
[1765560652445,0.4502,3067.2,3066.2,3.26134538]
[1765560652652,0.4502,3067.2,3066.1,3.26146775]
[1765560652811,24.6607307,3067.1,3065.9,3.7586079]
[1765560653138,12.899053,3067.0,3065.9,3.7586079]
[1765560653316,0.4502,3067.0,3065.9,7.02029288]
[1765560653722,0.4502,3067.0,3065.9,3.7586079]
[1765560654119,0.4502,3067.0,3065.9,7.02029288]
[1765560654310,0.4502,3067.0,3065.9,3.7586079]
[1765560654506,1.03067529,3067.0,3065.8,3.26172407]
[1765560654707,1.03067529,3067.0,3065.9,3.26167011]
[1765560655048,3.84120308,3066.8,3065.8,3.26178782]
[1765560655210,4.37020308,3066.8,3065.8,3.26178782]
[1765560655405,3.84120308,3066.8,3065.8,6.52357919]
[1765560655622,3.2606655,3066.9,3066.0,0.497]
[1765560655849,0.529,3066.8,3066.0,0.497]
[1765560656838,1.01193974,3066.8,3065.8,3.26178782]
[1765560657042,4.27266753,3066.8,3065.8,3.26178782]
[1765560657238,4.72286753,3066.8,3065.7,7.32365852]
[1765560657725,5.21976753,3066.8,3065.7,7.32365852]
[1765560657935,4.27266753,3066.8,3065.8,0.497]
[1765560658134,3.78972779,3066.8,3065.8,0.497]
[1765560658370,0.05,3066.3,3064.8,0.1825]
[1765560658662,0.1138,3065.9,3064.8,0.1825]
[1765560658865,1.03067529,3066.7,3065.1,3.75949756]
[1765560658866,0.58047529,3066.7,3065.1,3.75949756]
[1765560659033,0.1808,3067.4,3066.1,0.4882]
[1765560659240,3.44091946,3067.4,3066.6,0.673]
[1765560659529,0.34409195,3067.3,3066.6,0.1848]
[1765560660052,0.92456724,3067.3,3066.6,0.1848]
[1765560660252,0.58047529,3067.3,3066.6,0.1848]
[1765560660549,3.78910673,3067.4,3066.7,0.497]
[1765560660728,0.529,3067.6,3066.7,0.497]
[1765560660935,3.25923994,3068.2,3067.6,0.6735]
[1765560661274,0.001,3068.3,3067.6,0.6735]
[1765560661275,0.001,3068.3,3068.2,0.1825]
[1765560661773,0.001,3068.3,3068.2,0.6795]
[1765560662078,0.001,3068.3,3066.7,3.26080233]
[1765560662079,17.06048,3068.1,3066.7,3.26080233]
[1765560662234,2.35789599,3068.0,3066.8,0.03260727]
[1765560662436,0.53,3067.9,3066.9,0.497]
[1765560662827,0.001,3068.3,3067.8,0.1853]
[1765560663078,0.001,3068.3,3067.8,3.44491468]
[1765560663366,0.001,3068.3,3067.9,0.497]
[1765560663655,0.001,3068.3,3067.4,0.497]
[1765560664055,2.113514,3068.2,3066.9,0.497]
[1765560664255,3.226233,3068.2,3067.0,0.6795]
[1765560664442,0.4502,3068.2,3067.1,3.26030709]
[1765560664756,0.4502,3068.2,3067.0,3.94000778]